bitfinex-derivatives/quotes_BTCF0:USTF0_20250906
["timestamp","ask_amount","ask_price","bid_price","bid_amount"]
[1757125057147,1.26017614,110890.0,110880.0,0.04331]
[1757125058647,0.43837614,110890.0,110880.0,0.04331]
[1757125058849,1.26021614,110890.0,110880.0,0.04331]
[1757125061248,0.93790646,110890.0,110880.0,0.04331]
[1757125061448,1.26021614,110890.0,110880.0,0.04331]
[1757125066060,0.43837614,110890.0,110880.0,0.04331]
[1757125066257,1.26001614,110890.0,110880.0,0.04331]
[1757125074364,0.11606646,110890.0,110880.0,0.04331]
[1757125074560,1.25989614,110890.0,110880.0,0.04331]
[1757125081568,0.11606646,110890.0,110880.0,0.04331]
[1757125081765,1.25989614,110890.0,110880.0,0.04331]
[1757125085970,0.43837614,110890.0,110880.0,0.04331]
[1757125086272,0.93758646,110890.0,110880.0,0.04331]
[1757125094376,0.93758646,110890.0,110880.0,0.0065]
[1757125094677,1.25989614,110890.0,110880.0,0.02895]
[1757125094877,1.25989614,110890.0,110880.0,0.04231]
[1757125095478,1.30020647,110890.0,110880.0,0.04231]
[1757125095772,0.93758646,110890.0,110880.0,0.04231]
[1757125095978,1.30020647,110890.0,110880.0,0.04231]
[1757125096681,0.93758646,110890.0,110880.0,0.04231]
[1757125096981,1.30020647,110890.0,110880.0,0.04231]
[1757125102181,0.93758646,110890.0,110880.0,0.04231]
[1757125102481,1.30020647,110890.0,110880.0,0.04231]
[1757125103685,0.93758646,110890.0,110880.0,0.04231]
[1757125103985,1.30020647,110890.0,110880.0,0.04231]
[1757125111383,1.66282648,110890.0,110880.0,0.0065]
[1757125111894,1.30020647,110890.0,110880.0,0.0065]
[1757125112488,1.30017264,110890.0,110880.0,0.0065]
[1757125126200,0.47865264,110890.0,110880.0,0.02919]
[1757125126406,0.47865264,110890.0,110880.0,0.04265]
[1757125126707,1.30009264,110890.0,110880.0,0.04265]
[1757125130414,0.93747263,110890.0,110880.0,0.04265]
[1757125130712,1.30009264,110890.0,110880.0,0.04265]
[1757125135619,1.30008798,110890.0,110880.0,0.04265]
[1757125137522,0.93746797,110890.0,110880.0,0.04265]
[1757125137821,1.30008798,110890.0,110880.0,0.04265]
[1757125145514,0.47864798,110890.0,110880.0,0.04265]
[1757125145717,1.29996798,110890.0,110880.0,0.04265]
[1757125146026,0.47864798,110890.0,110880.0,0.04265]
[1757125146326,1.29996798,110890.0,110880.0,0.40527001]
[1757125146521,1.29996798,110890.0,110880.0,0.04265]
[1757125149717,0.93730797,110890.0,110880.0,0.40527001]
[1757125150023,1.29992798,110890.0,110880.0,0.40527001]
[1757125152527,1.29992798,110890.0,110880.0,0.04265]
[1757125153726,0.93730797,110890.0,110880.0,0.04265]
[1757125154127,1.29992798,110890.0,110880.0,0.04265]
[1757125155025,1.29992798,110890.0,110880.0,0.40527001]
[1757125155622,1.29992798,110890.0,110880.0,0.04265]
[1757125157418,1.25961355,110890.0,110880.0,0.04265]
[1757125161830,0.43833355,110890.0,110880.0,0.04265]
[1757125162129,1.25953355,110890.0,110880.0,0.04265]
[1757125164232,0.43833355,110890.0,110880.0,0.04265]
[1757125164434,1.25953355,110890.0,110880.0,0.04265]
[1757125172241,0.11602797,110890.0,110880.0,0.04265]
[1757125172441,0.93710797,110890.0,110880.0,0.04265]
[1757125175837,0.11602797,110890.0,110880.0,0.04265]
[1757125176040,0.93706797,110890.0,110880.0,0.04265]
[1757125176635,0.91440746,110890.0,110880.0,0.04265]
[1757125177030,0.93702315,110890.0,110880.0,0.04265]
[1757125189853,0.91428746,110890.0,110880.0,0.36495558]
[1757125190954,0.09336746,110890.0,110880.0,0.36495558]
[1757125191156,0.91428746,110890.0,110880.0,0.36495558]
[1757125193457,0.91428746,110890.0,110880.0,0.61495558]
[1757125193858,0.84254,110890.0,110880.0,0.61495558]
[1757125194662,0.82084,110890.0,110880.0,0.61495558]
[1757125195255,0.82084,110890.0,110880.0,0.61395558]
[1757125195557,0.82084,110890.0,110880.0,0.61595558]
[1757125201061,0.02203524,110900.0,110890.0,0.01303]
[1757125201261,0.84255524,110900.0,110890.0,0.35760558]
[1757125202459,0.84255524,110900.0,110890.0,0.36310558]
[1757125203561,0.84255524,110900.0,110890.0,0.0408]
[1757125203962,0.84255524,110900.0,110890.0,0.36310558]
[1757125209569,0.84255524,110900.0,110890.0,0.36610558]
[1757125210373,0.84255524,110900.0,110890.0,0.36510558]
[1757125211271,0.84255524,110900.0,110890.0,0.36710558]
[1757125217486,0.84255524,110900.0,110890.0,0.40725764]
[1757125220981,0.84223524,110900.0,110890.0,0.40725764]
[1757125225083,1.20469288,110900.0,110890.0,0.0095]
[1757125225279,1.21147288,110900.0,110890.0,0.37195764]
[1757125225681,1.20469288,110900.0,110890.0,0.40703764]
[1757125230484,1.20469288,110900.0,110890.0,0.04458]
[1757125230684,1.20469288,110900.0,110890.0,0.40703764]
[1757125232782,1.20469288,110900.0,110890.0,0.04458]
[1757125235889,1.20469288,110900.0,110890.0,0.40703764]
[1757125236689,0.84223524,110900.0,110890.0,0.40703764]
[1757125236893,1.20469288,110900.0,110890.0,0.40703764]
[1757125241094,1.2274029,110900.0,110890.0,0.40703764]
[1757125241484,0.4070029,110900.0,110890.0,0.40703764]
[1757125241688,1.2272429,110900.0,110890.0,0.04458]
[1757125241889,1.2272429,110900.0,110890.0,0.40703764]
[1757125244396,1.20453288,110900.0,110890.0,0.40703764]
[1757125244590,0.84207524,110900.0,110890.0,0.40703764]
[1757125244892,1.20453288,110900.0,110890.0,0.40703764]
[1757125250795,1.20453288,110900.0,110890.0,0.04458]
[1757125250996,1.20453288,110900.0,110890.0,0.40703764]
[1757125256803,1.20453288,110900.0,110890.0,0.04458]
[1757125256998,1.20453288,110900.0,110890.0,0.40703764]
[1757125259505,0.84207524,110900.0,110890.0,0.40703764]
[1757125259705,1.20453288,110900.0,110890.0,0.40703764]
[1757125264008,0.84207524,110900.0,110890.0,0.40703764]
[1757125264210,1.20453288,110900.0,110890.0,0.40703764]
[1757125264410,1.20453288,110900.0,110890.0,0.04458]
[1757125264609,1.20453288,110900.0,110890.0,0.40703764]
[1757125269516,1.20453288,110900.0,110890.0,0.04458]
[1757125269718,1.46131288,110900.0,110890.0,0.0095]
[1757125269914,1.48404024,110900.0,110890.0,0.0095]
[1757125277415,1.44393046,110900.0,110890.0,0.0095]
[1757125294246,1.44393046,110900.0,110890.0,0.0025]
[1757125299250,1.19393046,110900.0,110890.0,0.0025]
[1757125305953,1.45393046,110900.0,110870.0,0.01346]
[1757125306258,0.0065,110870.0,110860.0,0.03501]
[1757125306558,0.82626,110870.0,110860.0,0.03501]
[1757125307258,0.89965741,110870.0,110860.0,0.03501]
[1757125307759,0.90065741,110870.0,110860.0,0.03901]
[1757125308859,0.90065741,110870.0,110860.0,0.04201]
[1757125309055,0.90979878,110870.0,110860.0,0.04201]
[1757125319673,0.09003878,110870.0,110860.0,0.04201]
[1757125319872,0.90971878,110870.0,110860.0,0.04201]
[1757125322574,1.23206664,110870.0,110860.0,0.04201]
[1757125324274,0.90971878,110870.0,110860.0,0.04201]
[1757125328075,1.23206664,110870.0,110860.0,0.04201]
[1757125329277,0.90971878,110870.0,110860.0,0.04201]
[1757125331777,1.23206664,110870.0,110860.0,0.04201]
[1757125334781,0.90971878,110870.0,110860.0,0.04201]
[1757125336188,0.90959878,110870.0,110860.0,0.04201]
[1757125339582,1.2723025,110870.0,110860.0,0.04201]
[1757125345095,1.2723025,110870.0,110860.0,0.04141]
[1757125347893,1.29500444,110870.0,110860.0,0.04141]
[1757125348692,1.29488444,110870.0,110860.0,0.04141]
[1757125348894,1.2721825,110870.0,110860.0,0.04141]
[1757125349794,1.2721825,110870.0,110860.0,0.01969]
[1757125349994,1.2721825,110870.0,110860.0,0.04141]
[1757125350493,1.2721825,110870.0,110860.0,0.01969]
[1757125350690,0.93216981,110870.0,110860.0,0.007]
[1757125350894,1.29487353,110870.0,110860.0,0.007]
[1757125351892,1.29387353,110870.0,110860.0,0.005]
[1757125352791,1.29387353,110870.0,110860.0,0.002]
[1757125352992,1.29387353,110870.0,110860.0,0.003]
[1757125356197,1.54387353,110870.0,110860.0,0.003]
[1757125356395,1.90657725,110870.0,110860.0,0.003]
[1757125356593,1.54387353,110870.0,110840.0,0.01299]
[1757125356792,0.36440372,110850.0,110840.0,0.01299]
[1757125356998,1.18384372,110850.0,110840.0,0.01299]
[1757125357196,0.36440372,110850.0,110840.0,0.01299]
[1757125357498,1.18384372,110850.0,110840.0,0.03471]
[1757125358098,1.18384372,110850.0,110840.0,0.03771]
[1757125358296,1.18484372,110850.0,110840.0,0.04171]
[1757125359500,0.36540372,110850.0,110840.0,0.04171]
[1757125359694,1.18484372,110850.0,110840.0,0.04171]
[1757125364500,0.36540372,110850.0,110840.0,0.04171]
[1757125364697,1.18484372,110850.0,110840.0,0.04171]
[1757125364996,0.36540372,110850.0,110840.0,0.04171]
[1757125365202,1.18484372,110850.0,110840.0,0.04171]
[1757125373208,0.36540372,110850.0,110840.0,0.04171]
[1757125373411,1.18480372,110850.0,110840.0,0.04171]
[1757125380510,0.36540372,110850.0,110840.0,0.04171]
[1757125380715,1.18476372,110850.0,110840.0,0.04171]
[1757125390019,1.20745524,110850.0,110840.0,0.04171]
[1757125392218,1.57015896,110850.0,110840.0,0.04171]
[1757125392819,1.57015896,110850.0,110840.0,0.01999]
[1757125394920,1.57015896,110850.0,110840.0,0.04295]
[1757125395622,0.84475152,110850.0,110840.0,0.04295]
[1757125395819,1.57015896,110850.0,110840.0,0.04295]
[1757125398524,0.84475152,110850.0,110840.0,0.04295]
[1757125398821,1.57015896,110850.0,110840.0,0.04295]
[1757125399524,1.57015896,110850.0,110840.0,0.01999]
[1757125400624,1.57015896,110850.0,110840.0,0.0411]
[1757125401525,1.16731433,110850.0,110840.0,0.0411]
[1757125401715,1.16715433,110850.0,110840.0,0.0411]
[1757125403828,0.84459152,110850.0,110840.0,0.0411]
[1757125404028,1.16715433,110850.0,110840.0,0.0411]
[1757125411134,1.14446281,110850.0,110840.0,0.0411]
[1757125414738,0.32526281,110850.0,110840.0,0.0411]
[1757125414938,1.14438281,110850.0,110840.0,0.0411]
[1757125417143,0.82182,110850.0,110840.0,0.0411]
[1757125417443,1.14438281,110850.0,110840.0,0.0411]
[1757125427253,0.82182,110850.0,110840.0,0.0411]
[1757125427448,1.14438281,110850.0,110840.0,0.0411]
[1757125438964,0.82182,110850.0,110840.0,0.0411]
[1757125439162,1.14438281,110850.0,110840.0,0.0411]
[1757125450473,0.82182,110850.0,110840.0,0.0411]
[1757125450674,1.14438281,110850.0,110840.0,0.0411]
[1757125451771,1.16711101,110850.0,110840.0,0.0411]
[1757125452272,1.14438281,110850.0,110840.0,0.0411]
[1757125452473,1.16711109,110850.0,110840.0,0.0411]
[1757125453075,1.16711109,110850.0,110840.0,0.01999]
[1757125455974,1.16711109,110850.0,110840.0,0.04274]
[1757125456177,1.16711109,110850.0,110840.0,0.01999]
[1757125457075,1.16711109,110850.0,110840.0,0.04126]
[1757125460275,1.14438281,110850.0,110840.0,0.04126]
[1757125460973,0.82182,110850.0,110840.0,0.04126]
[1757125461175,1.14438281,110850.0,110840.0,0.04126]
[1757125461677,1.54759564,110850.0,110840.0,0.04126]
[1757125462778,1.54759564,110850.0,110840.0,0.01999]
[1757125462982,1.79759564,110850.0,110840.0,0.007]
[1757125470986,1.54759564,110850.0,110840.0,0.007]
[1757125474589,1.57036041,110850.0,110840.0,0.007]
[1757125475289,1.56984041,110850.0,110840.0,0.007]
[1757125477796,1.81984041,110850.0,110840.0,0.007]
[1757125478192,1.81984041,110850.0,110840.0,0.00594]
[1757125479394,1.56984041,110850.0,110840.0,0.00594]
[1757125480792,1.81984041,110850.0,110840.0,0.00594]
[1757125481697,2.26424041,110850.0,110840.0,0.00594]
[1757125482302,2.26324041,110850.0,110840.0,0.002]
[1757125486504,2.26319398,110850.0,110840.0,0.002]
[1757125495709,0.00038,110820.0,110800.0,0.01369]
[1757125495905,0.36326782,110810.0,110800.0,0.03538]
[1757125496207,0.89638782,110810.0,110800.0,0.39826782]
[1757125496401,1.18182782,110810.0,110800.0,0.39826782]
[1757125497318,1.18182782,110810.0,110800.0,0.40226782]
[1757125497613,1.25491129,110810.0,110800.0,0.40226782]
[1757125497807,1.25491129,110810.0,110800.0,0.40526782]
[1757125498213,1.25591129,110810.0,110800.0,0.40426782]
[1757125498413,1.26512988,110810.0,110800.0,0.40426782]
[1757125498613,1.26512988,110810.0,110800.0,0.04138]
[1757125498911,1.26512988,110810.0,110800.0,0.40426782]
[1757125499313,0.90224206,110810.0,110800.0,0.40426782]
[1757125499514,1.26512988,110810.0,110800.0,0.40426782]
[1757125500216,1.26512988,110810.0,110800.0,0.04138]
[1757125505318,0.90224206,110810.0,110800.0,0.04138]
[1757125505619,1.26512988,110810.0,110800.0,0.04138]
[1757125511118,0.44656988,110810.0,110800.0,0.04138]
[1757125511313,1.26516988,110810.0,110800.0,0.04138]
[1757125515826,0.44656988,110810.0,110800.0,0.04138]
[1757125516023,1.26520988,110810.0,110800.0,0.04148]
[1757125516522,0.44656988,110810.0,110800.0,0.04148]
[1757125516728,1.26520988,110810.0,110800.0,0.04148]
[1757125519929,1.26556988,110810.0,110800.0,0.04148]
[1757125520120,1.26552988,110810.0,110800.0,0.04599]
[1757125523425,1.2253882,110810.0,110800.0,0.04599]
[1757125524833,0.08368206,110810.0,110800.0,0.04599]
[1757125525130,0.26676206,110810.0,110800.0,0.04599]
[1757125525631,0.08368206,110810.0,110800.0,0.04599]
[1757125525841,0.75368206,110810.0,110800.0,0.04599]
[1757125528333,1.0764282,110810.0,110800.0,0.04599]
[1757125528835,1.0764282,110810.0,110800.0,0.36873614]
[1757125528836,0.08368206,110810.0,110800.0,0.36873614]
[1757125529133,0.07408347,110810.0,110800.0,0.61873614]
[1757125529328,0.001,110810.0,110800.0,0.61873614]
[1757125539350,0.001,110810.0,110800.0,0.36873614]
[1757125540144,0.00138,110810.0,110800.0,0.36873614]
[1757125546147,0.001,110810.0,110800.0,0.36873614]
[1757125546348,0.00138,110810.0,110800.0,0.36873614]
[1757125547443,0.001,110810.0,110800.0,0.36873614]
[1757125548147,0.001,110810.0,110800.0,0.44973395]
[1757125548642,0.001,110810.0,110800.0,0.36873614]
[1757125553658,0.001,110810.0,110800.0,0.04599]
[1757125553956,0.001,110810.0,110800.0,0.36873614]
[1757125561460,0.001,110810.0,110800.0,0.44973395]
[1757125561759,0.001,110810.0,110800.0,0.36873614]
[1757125568060,0.001,110810.0,110800.0,0.04599]
[1757125568257,0.001,110810.0,110800.0,0.36873614]
[1757125571668,0.001,110810.0,110800.0,0.44973395]
[1757125583474,0.001,110810.0,110800.0,0.48995223]
[1757125589378,0.001,110810.0,110800.0,0.12698781]
[1757125589579,0.001,110810.0,110800.0,1.10147223]
[1757125591882,0.001,110810.0,110800.0,0.48995223]
[1757125592088,0.001,110810.0,110800.0,1.30879223]
[1757125596792,0.001,110810.0,110800.0,0.48995223]
[1757125597092,0.001,110810.0,110800.0,1.30859223]
[1757125599389,0.001,110810.0,110800.0,0.48995223]
[1757125599591,0.001,110810.0,110800.0,1.30859223]
[1757125600295,0.001,110810.0,110800.0,0.48995223]
[1757125600495,0.001,110810.0,110800.0,1.30859223]
[1757125603196,0.001,110810.0,110800.0,0.48995223]
[1757125603400,0.001,110810.0,110800.0,1.30859223]
[1757125612903,0.001,110810.0,110800.0,1.22759442]
[1757125620910,0.001,110810.0,110800.0,0.40895442]
[1757125621105,0.001,110810.0,110800.0,0.86459]
[1757125621306,0.001,110810.0,110800.0,1.22755442]
[1757125621514,0.001,110810.0,110800.0,0.40895442]
[1757125621706,0.001,110810.0,110800.0,1.22755442]
[1757125623014,0.001,110810.0,110800.0,1.30855223]
[1757125624911,0.001,110810.0,110800.0,1.22755442]
[1757125634818,0.00138,110810.0,110800.0,0.48995223]
[1757125635121,0.00138,110810.0,110800.0,1.30855223]
[1757125635622,0.00138,110810.0,110800.0,0.48995223]
[1757125635822,0.00138,110810.0,110800.0,1.30855223]
[1757125641923,0.00138,110810.0,110800.0,0.48995223]
[1757125642124,0.00138,110810.0,110800.0,1.30855223]
[1757125642831,0.00138,110810.0,110800.0,0.48995223]
[1757125643024,0.00138,110810.0,110800.0,1.30851223]
[1757125645527,0.00138,110810.0,110800.0,1.26823924]
[1757125648442,0.00138,110810.0,110800.0,0.44967924]
[1757125649044,0.00138,110810.0,110800.0,0.36868143]
[1757125653648,0.07299092,110810.0,110800.0,0.36868143]
[1757125658652,0.07299092,110810.0,110800.0,0.44967924]
[1757125659545,0.07299092,110810.0,110800.0,0.12698781]
[1757125659751,0.07299092,110810.0,110800.0,0.44967924]
[1757125659951,0.001,110810.0,110800.0,0.44967924]
[1757125674862,0.001,110810.0,110800.0,0.36868143]
[1757125684967,0.001,110810.0,110800.0,0.44967924]
[1757125704182,0.001,110810.0,110800.0,1.26807924]
[1757125704485,0.001,110810.0,110800.0,0.12698781]
[1757125704675,0.001,110810.0,110800.0,0.44967924]
[1757125707484,0.001,110810.0,110800.0,0.48997334]
[1757125708683,0.001,110810.0,110800.0,0.48897334]
[1757125715088,0.001,110810.0,110800.0,0.40797553]
[1757125721294,0.001,110810.0,110800.0,0.04499]
[1757125721593,0.001,110810.0,110800.0,0.40797553]
[1757125724486,0.001,110810.0,110800.0,0.48897334]
[1757125728495,0.001,110810.0,110800.0,0.12598781]
[1757125728694,0.001,110810.0,110800.0,0.48897334]
[1757125733396,0.001,110810.0,110800.0,0.12598781]
[1757125733596,0.001,110810.0,110800.0,0.48897334]
[1757125734197,0.001,110810.0,110800.0,0.40797553]
[1757125740206,0.001,110810.0,110800.0,0.04499]
[1757125740408,0.001,110810.0,110800.0,0.40797553]
[1757125743712,0.00298,110810.0,110800.0,0.40797553]
[1757125744111,0.001,110810.0,110800.0,0.40797553]
[1757125744412,0.00298,110810.0,110800.0,0.40797553]
[1757125744911,0.001,110810.0,110800.0,0.40797553]
[1757125745110,0.00298,110810.0,110800.0,0.40797553]
[1757125745409,0.001,110810.0,110800.0,0.40797553]
[1757125747513,0.001,110810.0,110800.0,0.04499]
[1757125747810,0.001,110810.0,110800.0,0.40797553]
[1757125748213,0.001,110810.0,110800.0,0.04499]
[1757125748415,0.001,110810.0,110800.0,0.40797553]
[1757125754420,0.001,110810.0,110800.0,0.04499]
[1757125754616,0.001,110810.0,110800.0,0.40797553]
[1757125758515,0.001,110810.0,110800.0,0.48897334]
[1757125764819,0.001,110810.0,110800.0,0.40797553]
[1757125767520,0.001,110810.0,110800.0,0.36765139]
[1757125771830,0.001,110810.0,110800.0,0.04499]
[1757125772020,0.001,110810.0,110800.0,0.36765139]
[1757125774926,0.001,110810.0,110800.0,0.4486492]
[1757125784837,0.001,110810.0,110800.0,0.36765139]
[1757125794749,0.001,110810.0,110800.0,0.4486492]
[1757125802148,0.00023524,110820.0,110800.0,0.4486492]
[1757125802447,0.00023524,110820.0,110810.0,0.35701139]
[1757125802642,0.00013524,110820.0,110810.0,0.35711139]
[1757125804044,0.00013524,110820.0,110810.0,0.36162139]
[1757125805764,0.00013524,110820.0,110810.0,0.36362139]
[1757125810157,0.00928895,110830.0,110820.0,0.03435]
[1757125810356,0.00918895,110830.0,110820.0,0.35711139]
[1757125810656,0.00389,110840.0,110830.0,0.03435]
[1757125810854,0.32266139,110850.0,110840.0,0.03435]
[1757125810855,0.32655139,110850.0,110840.0,0.03435]
[1757125811055,0.34870726,110850.0,110840.0,0.03435]
[1757125811257,0.02604587,110850.0,110840.0,0.03435]
[1757125811551,0.02604587,110850.0,110840.0,0.03335]
[1757125812050,0.26299884,110850.0,110840.0,0.03335]
[1757125813151,0.26599884,110850.0,110840.0,0.03335]
[1757125813548,0.26799884,110850.0,110840.0,0.03335]
[1757125814954,0.29022458,110850.0,110840.0,0.03335]
[1757125815961,0.28822458,110850.0,110840.0,0.03335]
[1757125816163,0.29022458,110850.0,110840.0,0.03335]
[1757125816459,0.28722458,110850.0,110840.0,0.03335]
[1757125816660,0.29022458,110850.0,110840.0,0.03335]
[1757125816862,0.28922458,110850.0,110840.0,0.03335]
[1757125817160,0.28822458,110850.0,110840.0,0.03335]
[1757125819262,0.28822458,110850.0,110840.0,0.03786]
[1757125820264,0.26599884,110850.0,110840.0,0.03786]
[1757125826475,0.83371884,110850.0,110840.0,0.03786]
[1757125827476,1.19653177,110850.0,110840.0,0.40067293]
[1757125832480,0.83371884,110850.0,110840.0,0.40067293]
[1757125832681,1.19453177,110850.0,110840.0,0.40067293]
[1757125832981,1.19553177,110850.0,110840.0,0.40067293]
[1757125833476,1.19453177,110850.0,110840.0,0.40067293]
[1757125833677,1.19453177,110850.0,110840.0,0.40167293]
[1757125833982,1.19453177,110850.0,110840.0,0.03886]
[1757125834982,1.19453177,110850.0,110840.0,0.40167293]
[1757125840076,1.19453177,110850.0,110840.0,0.03886]
[1757125840280,1.19453177,110850.0,110840.0,0.40167293]
[1757125840881,1.19453177,110850.0,110840.0,0.03886]
[1757125841484,1.5573447,110850.0,110840.0,0.03886]
[1757125841692,1.82954707,110850.0,110840.0,0.01777]
[1757125841989,1.82954707,110850.0,110840.0,0.00551]
[1757125842985,1.82953898,110850.0,110840.0,0.00551]
[1757125843779,1.82952799,110850.0,110840.0,0.00551]
[1757125851194,1.01180799,110850.0,110840.0,0.00551]
[1757125851396,1.82940799,110850.0,110840.0,0.00551]
[1757125854997,1.01180799,110850.0,110840.0,0.00551]
[1757125855200,1.82940799,110850.0,110840.0,0.00551]
[1757125858204,2.14940799,110850.0,110840.0,0.00551]
[1757125858699,1.33180799,110850.0,110840.0,0.00551]
[1757125859003,1.82940799,110850.0,110840.0,0.00551]
[1757125859206,1.01180799,110850.0,110840.0,0.04059]
[1757125859502,1.82936799,110850.0,110840.0,0.01904]
[1757125860903,1.82936799,110850.0,110840.0,0.00551]
[1757125861300,1.01180799,110850.0,110840.0,0.00551]
[1757125861605,1.82936799,110850.0,110840.0,0.04059]
[1757125861899,1.82936799,110850.0,110840.0,0.01904]
[1757125862406,1.82936799,110850.0,110840.0,0.00551]
[1757125862902,1.01180799,110850.0,110840.0,0.00551]
[1757125863100,1.21655506,110850.0,110840.0,0.04059]
[1757125863301,0.39899506,110850.0,110840.0,0.04059]
[1757125863500,1.57936799,110850.0,110840.0,0.04059]
[1757125864905,0.01399884,110850.0,110840.0,0.04059]
[1757125865106,1.19437177,110850.0,110840.0,0.29059]
[1757125867505,0.83155884,110850.0,110840.0,0.29059]
[1757125867705,1.19437177,110850.0,110840.0,0.29059]
[1757125870107,0.83155884,110850.0,110840.0,0.29059]
[1757125870310,1.2165668,110850.0,110840.0,0.29059]
[1757125872306,0.85375387,110850.0,110840.0,0.29059]
[1757125872513,1.2165668,110850.0,110840.0,0.29059]
[1757125876812,1.57937973,110850.0,110840.0,0.29059]
[1757125878517,0.85375387,110850.0,110840.0,0.29059]
[1757125878720,1.57937973,110850.0,110840.0,0.29059]
[1757125882526,1.57938722,110850.0,110840.0,0.29059]
[1757125886730,0.03620136,110850.0,110840.0,0.29059]
[1757125886929,1.46882722,110850.0,110840.0,0.29059]
[1757125887629,1.06578306,110850.0,110840.0,0.29059]
[1757125888124,0.74320136,110850.0,110840.0,0.29059]
[1757125888330,1.17626306,110850.0,110840.0,0.29059]
[1757125892934,1.17627741,110850.0,110840.0,0.29059]
[1757125899333,1.17627741,110850.0,110840.0,0.04059]
[1757125899839,0.35879741,110850.0,110840.0,0.04059]
[1757125900227,1.17627741,110850.0,110840.0,0.04059]
[1757125900633,0.03621571,110850.0,110840.0,0.04059]
[1757125900938,0.01020884,110850.0,110840.0,0.3631717]
[1757125901139,0.67780884,110850.0,110840.0,0.3631717]
[1757125901340,0.67780884,110850.0,110840.0,0.6131717]
[1757125901642,0.82764884,110850.0,110840.0,0.6131717]
[1757125902239,0.82764884,110850.0,110840.0,0.29059]
[1757125903141,0.83303884,110850.0,110840.0,0.29059]
[1757125927152,0.83303884,110850.0,110840.0,0.6131717]
[1757125928761,0.01559884,110850.0,110840.0,0.6131717]
[1757125928960,0.01020884,110850.0,110840.0,0.6131717]
[1757125937362,0.001,110850.0,110840.0,0.6131717]
[1757125941154,0.01018886,110850.0,110840.0,0.6131717]
[1757125942567,0.01018886,110850.0,110840.0,0.69416951]
[1757125943466,0.01018886,110850.0,110840.0,0.6131717]
[1757125944063,0.01557886,110850.0,110840.0,0.6131717]
[1757125944971,0.01557886,110850.0,110840.0,0.29059]
[1757125949472,0.37838105,110850.0,110840.0,0.65339219]
[1757125950872,0.01557886,110850.0,110840.0,0.65339219]
[1757125952572,0.01018886,110850.0,110840.0,0.65339219]
[1757125954275,0.01018886,110850.0,110840.0,0.65239219]
[1757125956174,0.001,110850.0,110840.0,0.65239219]
[1757125956475,0.001,110850.0,110840.0,0.73339]
[1757125958678,0.001,110850.0,110840.0,0.8236022]
[1757125959281,0.001,110850.0,110840.0,0.5736022]
[1757125959674,0.001,110850.0,110840.0,0.84619219]
[1757125959977,0.00033524,110860.0,110850.0,0.125254]
[1757125960180,0.00013524,110860.0,110850.0,0.93185619]
[1757125961080,0.00213524,110860.0,110850.0,0.93636619]
[1757125961783,0.00113524,110860.0,110850.0,0.93636619]
[1757125962078,0.07359741,110870.0,110850.0,0.93636619]
[1757125962278,0.07359741,110870.0,110860.0,0.39785219]
[1757125962480,0.07339741,110870.0,110860.0,0.39785219]
[1757125962682,0.0002,110880.0,110860.0,0.5690459]
[1757125962876,0.00911444,110880.0,110870.0,0.39785219]
[1757125963178,0.00891444,110880.0,110870.0,0.39785219]
[1757125963382,0.4428738,110890.0,110880.0,0.03505]
[1757125963586,0.4426738,110890.0,110880.0,0.39785219]
[1757125963786,0.4426738,110890.0,110880.0,0.39585219]
[1757125964187,0.07987161,110890.0,110880.0,0.39485219]
[1757125964484,0.4426738,110890.0,110880.0,0.39485219]
[1757125964788,0.4456738,110890.0,110880.0,0.39485219]
[1757125964989,0.4456738,110890.0,110880.0,0.39585219]
[1757125964990,0.08587161,110890.0,110880.0,0.39585219]
[1757125965191,0.4486738,110890.0,110880.0,0.39585219]
[1757125965387,0.08587161,110890.0,110880.0,0.39585219]
[1757125965981,0.09469234,110890.0,110880.0,0.39585219]
[1757125966281,0.45749453,110890.0,110880.0,0.39585219]
[1757125970085,1.27449453,110890.0,110880.0,0.39585219]
[1757125973993,0.91169234,110890.0,110880.0,0.39585219]
[1757125974293,1.27449453,110890.0,110880.0,0.39585219]
[1757125976297,1.27449453,110890.0,110880.0,0.40035219]
[1757125978191,1.27449453,110890.0,110880.0,0.03755]
[1757125978192,0.91169234,110890.0,110880.0,0.03755]
[1757125978592,0.91169234,110890.0,110880.0,0.40035219]
[1757125981199,0.09469234,110890.0,110880.0,0.40035219]
[1757125981392,0.91161234,110890.0,110880.0,0.40035219]
[1757125983400,0.09469234,110890.0,110880.0,0.40035219]
[1757125983601,0.91157234,110890.0,110880.0,0.40035219]
[1757125985894,0.09469234,110890.0,110880.0,0.76315438]
[1757125986102,0.91157234,110890.0,110880.0,0.76315438]
[1757125987704,0.91157234,110890.0,110880.0,0.40035219]
[1757125989299,0.91157234,110890.0,110880.0,0.03755]
[1757125989501,0.91157234,110890.0,110880.0,0.40035219]
[1757125990901,0.91157234,110890.0,110880.0,0.76315438]
[1757125993202,0.91157234,110890.0,110880.0,0.40035219]
[1757125996709,0.91157234,110890.0,110880.0,0.03755]
[1757125997007,1.27437453,110890.0,110880.0,0.40035219]
[1757126003219,0.91157234,110890.0,110880.0,0.40035219]
[1757126003410,1.27437453,110890.0,110880.0,0.40035219]
[1757126004817,1.27437453,110890.0,110880.0,0.03755]
[1757126005016,1.27437453,110890.0,110880.0,0.40035219]
[1757126006313,0.91157234,110890.0,110880.0,0.40035219]
[1757126011620,0.91157234,110890.0,110880.0,0.03755]
[1757126036849,0.91157234,110890.0,110880.0,0.35980796]
[1757126040348,0.91157234,110890.0,110880.0,0.03755]
[1757126040550,0.91157234,110890.0,110880.0,0.35980796]
[1757126047249,0.91157234,110890.0,110880.0,0.03755]
[1757126047450,1.2338303,110890.0,110880.0,0.03755]
[1757126048352,0.91157234,110890.0,110880.0,0.03755]
[1757126058960,0.09469234,110890.0,110880.0,0.03755]
[1757126059158,0.91137234,110890.0,110880.0,0.03755]
[1757126060065,0.09469234,110890.0,110880.0,0.03755]
[1757126060363,0.84001234,110890.0,110880.0,0.03755]
[1757126066367,0.09469234,110890.0,110880.0,0.03755]
[1757126066567,0.91133234,110890.0,110880.0,0.03755]
[1757126069872,0.09469234,110890.0,110880.0,0.03755]
[1757126070066,0.91133234,110890.0,110880.0,0.03755]
[1757126071575,1.27388451,110890.0,110880.0,0.40010217]
[1757126072068,0.91133234,110890.0,110880.0,0.40010217]
[1757126072273,1.27388451,110890.0,110880.0,0.40010217]
[1757126072773,1.27388451,110890.0,110880.0,0.48109998]